bitfinex-derivatives/quotes_ETHF0:USTF0_20250531
["timestamp","ask_amount","ask_price","bid_price","bid_amount"]
[1748651858631,0.79153,2525.8,2525.6,5.29493577]
[1748651858831,1.3618,2526.0,2525.6,5.29493577]
[1748651859030,0.79151,2525.9,2525.6,6.08651577]
[1748651859642,0.79153,2525.8,2525.7,1.2409]
[1748651859938,3.41163577,2526.1,2525.7,1.2409]
[1748651860143,0.79148,2526.0,2525.7,2.03244]
[1748651860838,0.7915,2525.9,2525.8,1.2409]
[1748651861534,0.79156,2525.7,2525.6,5.29493577]
[1748651861836,0.79151,2525.9,2525.6,5.29493577]
[1748651862029,0.79153,2525.8,2525.7,1.2409]
[1748651862239,0.79156,2525.8,2525.6,5.29493577]
[1748651862436,1.3349,2526.0,2525.6,5.29493577]
[1748651862630,0.79156,2525.8,2525.6,5.29493577]
[1748651862833,0.1979,2525.7,2525.6,7.38282577]
[1748651863034,0.1979,2525.7,2525.6,9.29432577]
[1748651863334,0.1979,2525.7,2525.6,14.29432577]
[1748651868740,0.1979,2525.7,2525.6,11.08652577]
[1748651869139,0.1979,2525.7,2525.6,14.29432577]
[1748651870441,0.1979,2525.7,2525.6,11.08652577]
[1748651870837,0.1979,2525.7,2525.6,6.08652577]
[1748651871037,0.26945339,2525.7,2525.6,6.08652577]
[1748651871438,0.26945339,2525.7,2525.6,9.29432577]
[1748651871839,0.00593577,2526.1,2526.0,0.79147]
[1748651872845,0.00593577,2526.1,2525.9,3.2078]
[1748651872846,0.00593577,2526.1,2525.6,5.29493577]
[1748651873047,1.35873577,2526.1,2526.0,0.79147]
[1748651874337,1.35873577,2526.1,2525.9,0.79148]
[1748651874541,2.15018577,2526.1,2525.9,0.79148]
[1748651874946,2.15018577,2526.1,2526.0,0.79147]
[1748651875146,2.15018577,2526.1,2525.9,0.79147]
[1748651875540,0.79147,2526.0,2525.8,0.79152]
[1748651875742,0.79151,2525.9,2525.8,0.79153]
[1748651876047,0.7915,2525.9,2525.8,0.79153]
[1748651876247,0.79156,2525.7,2525.6,5.29493577]
[1748651877047,0.86311339,2525.7,2525.6,5.29493577]
[1748651877251,0.07155339,2525.7,2525.6,6.08652577]
[1748651879155,1.33823577,2526.1,2526.0,0.79147]
[1748651880455,0.00593577,2526.1,2526.0,0.79147]
[1748651881553,2.14628577,2526.1,2525.9,2.15068]
[1748651881752,2.14628577,2526.1,2525.9,0.79148]
[1748651881955,1.35483577,2526.1,2526.0,0.79147]
[1748651882154,0.00593577,2526.1,2526.0,0.79147]
[1748651883660,5.77e-06,2526.1,2526.0,5.79147]
[1748651885259,1.3321,2527.2,2527.0,0.79114]
[1748651885456,1.3321,2527.2,2527.1,6.00912]
[1748651885760,2.0167,2527.2,2527.1,6.00912]
[1748651885961,2.0167,2527.2,2527.1,5.218]
[1748651886160,2.80779,2527.2,2527.1,5.218]
[1748651886557,0.79116,2527.0,2526.9,0.00593577]
[1748651886859,3.99896,2527.0,2526.9,0.00593577]
[1748651887063,8.99896,2527.0,2526.9,0.00593577]
[1748651887363,10.26456,2527.0,2526.9,0.00593577]
[1748651888565,9.4734,2527.0,2525.9,4.57668754]
[1748651888761,3.2078,2526.3,2526.2,5.217]
[1748651889061,3.2078,2526.6,2526.4,0.79134]
[1748651889264,2.05691,2526.5,2526.2,6.00839]
[1748651889665,1.2656,2526.5,2526.3,0.79137]
[1748651889865,1.2656,2526.5,2526.2,6.00839]
[1748651890065,2.05692,2526.5,2526.2,6.00839]
[1748651890956,1.2656,2526.5,2526.4,0.79134]
[1748651891162,0.79117,2527.0,2526.2,6.5446]
[1748651891163,3.2078,2527.0,2526.2,6.5446]
[1748651891359,1.3405,2526.9,2526.2,6.5446]
[1748651891662,0.79129,2526.6,2526.3,0.79136]
[1748651891863,1.3405,2526.5,2526.3,0.79136]
[1748651892053,2.13181,2526.5,2526.2,6.00838]
[1748651892258,2.13181,2526.5,2526.3,0.79137]
[1748651892453,1.3405,2526.5,2526.3,0.79137]
[1748651892759,2.13182,2526.5,2526.3,0.79137]
[1748651892959,1.3405,2526.5,2526.3,0.79137]
[1748651893163,2.13181,2526.5,2526.3,0.79137]
[1748651893366,0.79134,2526.4,2526.2,6.00839]
[1748651893665,1.3566,2526.3,2526.2,6.00839]
[1748651894470,3.2078,2526.7,2526.6,0.79128]
[1748651894669,3.2078,2526.7,2526.4,0.79133]
[1748651894670,0.79128,2526.6,2526.4,0.79133]
[1748651894969,0.79128,2526.6,2526.3,0.79135]
[1748651895170,0.79128,2526.6,2526.4,0.79133]
[1748651895669,0.79126,2526.7,2526.5,0.79129]
[1748651895867,1.2791,2526.6,2526.5,0.79129]
[1748651896367,2.07039,2526.6,2526.4,0.79133]
[1748651896563,0.79131,2526.5,2526.3,0.79135]
[1748651896869,1.2791,2526.5,2526.4,0.79134]
[1748651897369,0.6353,2526.8,2526.3,3.2078]
[1748651897569,0.6496,2527.1,2526.4,3.22545]
[1748651897772,5.27796,2527.3,2527.0,0.79114]
[1748651898073,0.79109,2527.2,2527.1,5.217]
[1748651898274,2.07019,2527.2,2527.1,5.217]
[1748651900473,3.99888,2527.3,2527.1,5.217]
[1748651900770,0.79109,2527.2,2527.1,5.217]
[1748651900972,2.08069,2527.2,2527.1,5.217]
[1748651901365,2.27849,2527.2,2527.1,5.217]
[1748651902570,1.4874,2527.2,2527.1,5.217]
[1748651902772,2.27849,2527.2,2527.1,5.217]
[1748651902969,1.4874,2527.2,2527.1,5.217]
[1748651903672,1.4874,2527.2,2527.1,6.00812]
[1748651903875,0.1978,2527.2,2527.1,6.00812]
[1748651904475,0.1978,2527.2,2527.1,5.217]
[1748651904877,0.1978,2527.2,2527.1,6.00812]
[1748651905766,0.1978,2527.2,2526.5,39.892]
[1748651905969,3.2078,2527.0,2526.8,0.7912]
[1748651906171,3.2078,2527.0,2526.9,0.79119]
[1748651906371,0.98889,2527.2,2526.9,0.79117]
[1748651906672,0.79117,2527.0,2526.8,1.3503]
[1748651906868,4.19671,2527.2,2526.9,0.79116]
[1748651907181,3.4056,2527.2,2526.8,1.3503]
[1748651907373,0.79113,2527.1,2526.9,0.79117]
[1748651907775,0.1978,2527.2,2527.1,0.79112]
[1748651908973,0.9889,2527.2,2527.0,2.74123]
[1748651909181,0.9889,2527.2,2527.0,1.9501]
[1748651909378,0.9889,2527.2,2527.0,2.74125]
[1748651909679,0.1978,2527.2,2527.1,0.79112]
[1748651910174,0.1978,2527.2,2527.1,5.79112]
[1748651910573,0.1978,2527.2,2527.1,0.79112]
[1748651912881,1.3154,2527.9,2527.1,5.0]
[1748651913082,2.35238716,2528.8,2527.8,3.2078]
[1748651913278,2.35238716,2528.8,2528.4,3.9985]
[1748651913474,3.14299716,2528.8,2528.5,0.6395]
[1748651913677,0.79064,2528.7,2528.6,5.18]
[1748651914184,1.2645,2528.8,2528.6,5.18]
[1748651914384,0.79062,2528.7,2528.6,5.18]
[1748651915386,1.2645,2528.8,2528.4,0.00593577]
[1748651915686,2.05515,2528.6,2528.5,5.18]
[1748651915888,1.2645,2528.6,2528.5,5.18]
[1748651916089,2.05515,2528.6,2528.5,5.18]
[1748651916387,1.2645,2528.6,2528.5,5.18]
[1748651916683,0.79064,2528.7,2528.5,5.18]
[1748651916886,2.05514,2528.7,2528.5,5.18]
[1748651917483,0.79069,2528.5,2528.4,0.00593577]
[1748651917986,2.10279,2528.5,2528.4,0.00593577]
[1748651919085,1.97519,2530.5,2528.4,48.09473577]
[1748651919289,3.2078,2530.0,2529.3,3.2078]
[1748651919496,0.79036,2529.6,2529.3,3.2078]
[1748651919688,1.3121,2529.5,2529.3,3.2078]
[1748651920192,0.79041,2529.4,2529.3,3.2078]
[1748651920590,2.10249,2529.5,2529.3,3.2078]
[1748651920891,0.79041,2529.4,2529.3,3.2078]
[1748651921087,0.79039,2529.5,2529.3,3.2078]
[1748651921286,0.79037,2529.6,2529.3,3.2078]
[1748651922390,1.2553,2529.7,2529.3,3.2078]
[1748651922794,0.79041,2529.4,2529.3,3.2078]
[1748651923190,1.2553,2529.7,2529.3,3.2078]
[1748651923391,0.79041,2529.4,2529.3,3.2078]
[1748651924492,1.2553,2529.7,2529.3,3.2078]
[1748651924687,1.2553,2529.7,2529.3,3.99822]
[1748651924892,1.2553,2529.7,2529.3,3.99823]
[1748651925091,0.79041,2529.4,2529.3,3.2078]
[1748651925292,1.2553,2529.7,2529.3,3.2078]
[1748651925490,0.79039,2529.5,2529.3,3.2078]
[1748651925691,3.2272916,2531.6,2529.6,3.2078]
[1748651925889,1.294,2531.2,2530.5,3.2078]
[1748651926093,1.294,2531.2,2530.6,5.178]
[1748651926298,1.2372,2530.9,2530.6,7.30362]
[1748651926495,2.02715,2530.9,2530.6,6.5136]
[1748651926695,0.78997,2530.8,2530.6,5.178]
[1748651926895,1.2372,2530.7,2530.6,5.178]
[1748651928301,1.2803,2531.4,2530.6,5.178]
[1748651928501,1.2372,2531.3,2530.6,5.96801]
[1748651928800,0.78991,2531.0,2530.6,6.5136]
[1748651929202,0.78994,2530.9,2530.6,6.5136]
[1748651929402,0.78992,2531.0,2530.6,6.5136]
[1748651929591,1.2955,2530.9,2530.6,6.5136]
[1748651930201,2.08544,2530.9,2530.6,6.5136]
[1748651930401,1.2955,2530.9,2530.6,6.5136]
[1748651930698,1.2955,2530.9,2530.6,7.30363]
[1748651930899,1.2955,2530.9,2530.8,3.2078]
[1748651931504,2.08544,2530.9,2530.8,3.2078]
[1748651932798,1.2955,2530.9,2530.8,3.2078]
[1748651933512,2.08544,2530.9,2530.8,3.2078]
[1748651935302,0.07155339,2531.0,2530.8,3.2078]
[1748651935504,0.0194916,2531.6,2530.8,3.2078]
[1748651935705,0.0194916,2531.6,2531.3,3.2078]
[1748651936000,0.0194916,2531.6,2531.5,0.78975]
[1748651936202,0.78975,2531.5,2531.3,3.21373577]
[1748651936406,0.0194916,2531.6,2531.3,3.21373577]
[1748651936810,1.2832916,2531.6,2531.3,3.21373577]
[1748651937010,2.0730216,2531.6,2531.3,3.21373577]
[1748651937306,2.0730316,2531.6,2531.3,3.21373577]
[1748651937807,0.78975,2531.5,2531.3,3.21373577]
[1748651938009,1.2638,2531.5,2531.3,3.21373577]
[1748651938407,0.78978,2531.4,2531.3,3.21373577]
[1748651938808,0.78985,2531.2,2531.1,3.2078]
[1748651939904,0.78991,2531.0,2530.9,0.00593577]
[1748651940704,3.2078,2531.1,2530.9,0.00593577]
[1748651940909,1.98042577,2531.4,2531.3,0.78981]
[1748651940910,0.00593577,2531.4,2531.3,0.78981]
[1748651941209,0.00593577,2531.4,2531.3,3.99761]
[1748651941608,0.00593577,2531.4,2531.3,5.31291]
[1748651942299,0.00593577,2531.4,2531.3,3.2078]
[1748651942699,2.35238716,2533.1,2531.3,56.46577744]
[1748651942905,2.35238716,2533.1,2532.1,3.2078]
[1748651943214,0.78942,2532.6,2532.2,2.10483]
[1748651943505,0.78942,2532.6,2532.2,0.78952]
[1748651943707,0.78943,2532.6,2532.2,2.10483]
[1748651943897,0.6521,2532.9,2532.2,1.3153]
[1748651944096,0.78942,2532.6,2532.2,2.10482]
[1748651944299,0.78942,2532.6,2532.3,1.3153]
[1748651944508,0.78939,2532.7,2532.3,1.3153]
[1748651944706,0.78941,2532.6,2532.3,1.3153]
[1748651944902,0.6521,2532.9,2532.1,8.3607237]
[1748651945203,3.2078,2532.7,2532.1,8.3607237]
[1748651945402,0.78952,2532.3,2532.1,8.3607237]
[1748651945602,0.78953,2532.2,2532.1,3.2137237]
[1748651946107,5.78953,2532.2,2532.1,0.0059237]
[1748651946411,0.6521,2532.9,2532.1,0.0059237]
[1748651946412,3.2078,2533.5,2532.1,8.2137237]
[1748651946611,0.78927,2533.1,2532.9,3.2078]
[1748651946805,0.78923,2533.2,2532.9,3.2078]
[1748651947004,0.78927,2533.1,2532.9,3.2078]
[1748651947198,0.07894529,2533.4,2532.9,3.2078]
[1748651947403,0.78924,2533.2,2533.0,1.3118]
[1748651947703,0.78928,2533.0,2532.9,3.2078]
[1748651948710,0.78931,2532.9,2532.6,4.5589]
[1748651948906,1.265,2532.9,2532.6,4.5589]
[1748651949110,2.05432,2532.9,2532.6,4.5589]
[1748651950001,0.07894529,2533.4,2532.6,4.5589]
[1748651950206,1.265,2533.3,2532.6,10.3483]
[1748651950407,0.78928,2533.1,2532.6,10.34829]
[1748651950606,1.265,2533.3,2532.7,1.3216]
[1748651950801,0.07894529,2533.4,2532.9,3.2078]
[1748651951010,1.3106,2533.3,2532.9,3.2078]
[1748651951209,0.78924,2533.2,2532.9,4.5294]
[1748651951412,0.78924,2533.2,2532.9,5.1798]
[1748651951611,0.78924,2533.2,2532.9,10.1798]
[1748651952108,0.07894529,2533.4,2532.9,10.1798]
[1748651952309,0.78923,2533.2,2533.1,3.2078]
[1748651952915,0.7893,2533.0,2532.8,8.9982]
[1748651953814,0.78931,2532.9,2532.8,3.2078]
[1748651959717,0.78944,2532.5,2532.4,3.2078]
[1748651960621,0.78944,2532.5,2532.4,4.4805]
[1748651961918,2.04491339,2532.9,2532.4,9.4805]
[1748651961919,0.78942,2532.6,2532.4,9.4805]
[1748651962115,0.78939,2532.7,2532.4,9.4805]
[1748651962313,0.07155339,2532.9,2532.4,4.4805]
[1748651962612,0.78944,2532.5,2532.4,4.4805]
[1748651963719,0.78944,2532.5,2532.4,9.4805]
[1748651964317,0.78944,2532.5,2532.4,4.4805]
[1748651964519,0.78944,2532.5,2532.4,9.4805]
[1748651965518,0.78936,2532.8,2532.5,0.78942]
[1748651965716,0.78936,2532.8,2532.6,1.2404]
[1748651966016,1.10197307,2532.7,2532.6,1.2404]
[1748651966221,1.89135307,2532.7,2532.6,1.2404]
[1748651966422,1.10197307,2532.7,2532.6,1.2404]
[1748651966719,1.89135307,2532.7,2532.6,1.2404]
[1748651966921,1.10197307,2532.7,2532.6,6.2404]
[1748651967119,1.89135307,2532.7,2532.6,6.2404]
[1748651967520,0.78936,2532.8,2532.6,6.2404]
[1748651967721,0.78936,2532.8,2532.7,4.5069]
[1748651967923,0.78936,2532.8,2532.7,9.5069]
[1748651968120,1.89203647,2532.8,2532.7,4.5069]
[1748651968522,1.89203647,2532.8,2532.7,1.2991]
[1748651969427,0.78944,2532.5,2532.4,3.2078]
[1748651969722,2.37537647,2532.8,2532.4,8.2078]
[1748651970125,2.37537647,2532.8,2532.4,5.0]
[1748651970328,0.78941,2532.6,2532.5,3.2078]
[1748651970730,0.78941,2532.6,2532.5,9.5206]
[1748651970929,1.89206647,2532.7,2532.5,9.5206]
[1748651971131,0.78941,2532.6,2532.5,9.5206]
[1748651973028,3.39e-06,2532.9,2532.5,14.5206]
[1748651973233,3.13651621,2533.6,2532.8,3.2078]
[1748651973528,0.07155339,2532.9,2532.1,20.1629237]
[1748651973729,0.07155339,2532.9,2532.8,3.99714]
[1748651974027,0.07155339,2532.9,2532.8,9.13714]
[1748651974333,0.78922,2533.3,2532.9,0.7893]
[1748651974632,0.78922,2533.3,2533.2,3.2078]
[1748651976324,5.78922,2533.3,2533.2,3.2078]
[1748651976523,6.87110612,2533.3,2533.2,3.2078]
[1748651976720,0.78928,2533.0,2532.9,4.4918]
[1748651977531,0.78928,2533.0,2532.9,3.2078]
[1748651977934,1.08188612,2533.3,2532.9,3.2078]
[1748651978132,1.08188612,2533.3,2532.9,4.5292]
[1748651978328,0.78927,2533.1,2532.9,4.5292]
[1748651978832,0.78928,2533.0,2532.9,4.5292]
[1748651979033,0.78926,2533.1,2532.9,4.5292]
[1748651979226,1.8673,2533.6,2532.9,4.5292]
[1748651979627,1.08166225,2533.5,2532.9,4.5292]
[1748651979827,0.78928,2533.1,2532.9,4.5292]
[1748651980043,1.2445,2533.4,2532.9,4.5292]
[1748651980232,0.78919,2533.3,2533.2,3.2078]
[1748651980730,1.08166225,2533.3,2533.2,3.2078]
[1748651981437,0.78915,2533.5,2533.2,3.2078]
[1748651981634,0.78915,2533.5,2533.3,1.348]
[1748651981837,0.78916,2533.4,2533.3,1.348]
[1748651983540,1.2594,2533.8,2533.3,1.348]
[1748651983742,0.78909,2533.6,2533.5,3.2078]
[1748651984139,3.2078,2534.2,2533.5,3.2078]
[1748651984341,1.97167,2535.0,2534.1,3.2078]
[1748651984533,0.78888,2534.3,2534.2,1.3283]
[1748651984739,2.0103,2534.8,2534.2,1.3283]
[1748651984940,0.78887,2534.4,2534.2,1.3283]
[1748651985140,0.78883,2534.5,2534.2,1.3283]
[1748651985340,2.6813,2534.8,2534.4,3.2078]
[1748651985536,0.78881,2534.6,2534.4,3.2078]
[1748651985741,0.78881,2534.5,2534.4,3.2078]
[1748651985941,8.27551621,2535.0,2534.4,3.2078]
[1748651985942,3.13651621,2535.0,2534.4,3.2078]
[1748651986142,0.78869,2534.9,2534.8,3.2078]
[1748651988342,0.78875,2534.7,2534.6,0.0059237]
[1748651989241,2.03205,2534.7,2534.6,0.0059237]
[1748651989944,0.78875,2534.7,2534.6,0.0059237]
[1748651990447,5.78875,2534.7,2534.6,3.7e-06]
[1748651990751,8.99655,2534.7,2534.6,3.7e-06]
[1748651993952,0.78875,2534.7,2534.6,3.7e-06]
[1748651997253,5.78875,2534.7,2534.6,3.7e-06]
[1748651998053,7.05735,2534.7,2534.6,3.7e-06]
[1748651998256,7.05735,2534.7,2534.0,3.2078]
[1748651998257,0.78894,2534.1,2534.0,3.2078]
[1748652002155,0.789,2533.9,2533.8,0.0059237]
[1748652002859,2.1437,2533.9,2533.8,0.0059237]
[1748652003160,7.1437,2533.9,2533.8,3.7e-06]
[1748652003554,0.78928,2533.0,2532.9,3.2078]
[1748652005655,0.78934,2532.8,2532.7,0.0059237]
[1748652007156,0.0059237,2533.2,2532.7,0.0059237]
[1748652007362,0.78911,2533.6,2533.1,3.99704]
[1748652007662,0.78911,2533.6,2533.5,3.2078]
[1748652008555,0.78919,2533.3,2533.2,2.0297]
[1748652008957,0.78916,2533.4,2533.2,2.0297]
[1748652009153,1.97283,2533.5,2532.7,0.0059237]
[1748652009362,1.2835,2533.3,2532.7,0.0059237]
[1748652009658,0.78934,2532.8,2532.7,0.0059237]
[1748652009858,0.78934,2532.8,2532.7,0.6441237]
[1748652012357,0.78923,2533.2,2532.7,6.4334837]
[1748652012663,0.78923,2533.2,2533.1,3.2078]
[1748652013061,0.78931,2532.9,2532.8,1.351]
[1748652013360,0.78934,2532.8,2532.7,0.6441237]
[1748652013556,0.78934,2532.8,2532.7,1.9951237]
[1748652014956,0.6241,2533.3,2532.7,1.9951237]
[1748652015155,0.78932,2532.9,2532.7,1.9951237]
[1748652015456,0.78931,2532.9,2532.8,1.3663]
[1748652015654,2.1176,2533.4,2532.8,1.3663]
[1748652015857,0.78928,2533.0,2532.9,3.2078]
[1748652016762,2.1176,2533.4,2532.9,3.2078]
[1748652016963,0.78925,2533.1,2533.0,2.0023]
[1748652017362,0.1968,2533.4,2533.0,7.0023]
[1748652017669,0.1968,2533.4,2533.3,3.2078]
[1748652018064,0.1968,2533.4,2533.3,5.1966]
[1748652019166,0.98596,2533.4,2533.3,5.1966]
[1748652019368,0.1968,2533.4,2533.3,5.1966]
[1748652019765,0.98596,2533.4,2533.3,5.1966]
[1748652020364,0.1968,2533.4,2533.3,5.1966]
[1748652020565,0.1968,2533.4,2533.3,10.98579]
[1748652020768,0.1968,2533.4,2533.3,5.1966]
[1748652021469,0.98596,2533.4,2533.3,5.1966]
[1748652022370,0.1968,2533.4,2533.3,5.1966]
[1748652022564,0.00588346,2533.8,2533.3,15.3296]
[1748652022764,0.00588346,2533.8,2533.7,3.2078]
[1748652022959,0.00588346,2533.8,2533.7,5.1835]
[1748652023165,0.79491346,2533.8,2533.7,5.1835]
[1748652024371,0.00588346,2533.8,2533.7,5.1835]
[1748652024771,0.79491346,2533.8,2533.7,5.1835]
[1748652025070,0.00588346,2533.8,2533.7,5.1835]
[1748652025267,0.79491346,2533.8,2533.7,3.2078]
[1748652026369,0.00588346,2533.8,2533.7,3.2078]
[1748652026571,0.79491346,2533.8,2533.7,3.2078]
[1748652027072,0.00588346,2533.8,2533.7,3.2078]
[1748652027664,0.4429,2534.0,2533.9,0.789]
[1748652027871,0.4429,2534.0,2533.8,0.78902]
[1748652028072,0.4429,2534.0,2533.8,1.89]
[1748652029375,0.4429,2534.0,2533.8,2.67902]
[1748652029766,0.4429,2534.0,2533.9,0.789]
[1748652029974,0.4429,2534.0,2533.9,2.0919]
[1748652031978,0.4429,2534.0,2533.9,1.3029]
[1748652032677,1.97147,2535.3,2533.9,8.27536]
[1748652032879,0.78872,2534.8,2534.7,3.2078]
[1748652034574,0.78881,2534.5,2534.4,3.2078]
[1748652035578,0.78885,2534.4,2534.3,0.0059237]
[1748652035782,1.40845,2534.4,2534.3,0.0059237]
[1748652037384,1.40845,2534.4,2534.3,3.2137237]
[1748652037575,2.6541911,2535.5,2534.3,3.2137237]
[1748652037776,2.6541911,2535.5,2534.8,3.2078]
[1748652037777,0.78869,2534.9,2534.8,3.2078]
[1748652037977,1.42939,2534.9,2534.8,3.2078]
[1748652040180,1.42939,2534.9,2534.3,5.1309237]
[1748652040181,0.78878,2534.6,2534.5,3.2078]
[1748652041586,2.04438,2534.6,2534.5,3.2078]
[1748652042186,0.07155339,2534.0,2533.7,3.2078]
[1748652042382,0.78903,2533.8,2533.7,3.2078]
[1748652042594,0.78914,2533.5,2533.2,3.2078]
[1748652042785,0.07155339,2534.0,2533.3,1.3325]
[1748652042986,1.2556,2533.9,2533.3,1.3325]
[1748652043184,0.78916,2533.4,2533.3,1.3384237]
[1748652043686,0.78916,2533.4,2533.3,0.0059237]
[1748652044882,2.71436,2533.4,2533.3,0.0059237]
[1748652046593,0.78916,2533.4,2533.3,0.0059237]
[1748652046793,3.2078,2533.5,2533.3,0.0059237]
[1748652047296,0.78916,2533.4,2533.3,0.0059237]
[1748652047781,0.0059237,2533.9,2533.3,10.1319237]
[1748652047988,0.0059237,2533.9,2533.8,3.2078]
[1748652050994,0.7949237,2533.9,2533.8,3.2078]
[1748652052998,3.2078,2535.2,2533.8,8.3338]
[1748652053189,0.78891,2534.2,2534.1,3.2078]
[1748652055090,0.78891,2534.2,2533.9,1.2375]
[1748652055798,0.78891,2534.2,2534.1,3.2078]
[1748652057098,0.78896,2534.0,2533.7,3.2078]
[1748652057397,0.78897,2534.0,2533.7,3.2078]
[1748652057694,2.05582,2534.1,2533.7,3.2078]
[1748652057895,2.05582,2534.1,2533.5,1.4361]
[1748652057896,1.97191,2534.7,2534.0,3.2078]
[1748652058099,2.34649578,2535.2,2534.6,3.2078]
[1748652058400,0.7887,2534.8,2534.7,2.013]
[1748652059593,0.78873,2534.7,2534.6,3.2137237]
[1748652061998,0.78873,2534.7,2534.6,0.0059237]
[1748652062306,3.99653,2534.7,2534.6,0.0059237]
[1748652062505,8.99653,2534.7,2534.6,3.7e-06]
[1748652062899,5.78873,2534.7,2534.6,3.7e-06]
[1748652063092,5.17924,2535.3,2534.6,3.7e-06]
[1748652063300,0.78873,2534.7,2534.6,3.7e-06]
[1748652064405,0.86028339,2534.7,2534.6,3.7e-06]
[1748652064601,0.86028339,2534.7,2534.6,3.2078037]
[1748652068113,0.07155339,2534.7,2534.6,3.2078037]
[1748652068601,0.86028339,2534.7,2534.6,3.2078037]
[1748652068803,0.86028339,2534.7,2534.6,4.5140037]
[1748652069011,0.07155339,2534.7,2534.6,4.5140037]
[1748652069205,0.86028339,2534.7,2534.6,4.5140037]
[1748652069605,0.07155339,2534.7,2534.6,4.5140037]
[1748652070107,0.00592,2534.9,2534.6,5.1883037]
[1748652070312,0.7887,2534.8,2534.7,1.3292]
[1748652071410,0.00592,2534.9,2534.7,1.3292]
[1748652071606,0.7887,2534.8,2534.7,1.3292]
[1748652071911,0.00592,2534.9,2534.7,1.3292]
[1748652072112,0.7946,2534.9,2534.7,1.3292]
[1748652072317,0.7887,2534.8,2534.7,1.3292]
[1748652072708,0.00592,2534.9,2534.7,1.3292]
[1748652073917,0.79459,2534.9,2534.7,1.3292]
[1748652074811,0.7887,2534.8,2534.7,1.3292]
[1748652075309,0.7887,2534.8,2534.6,3.8821037]
[1748652075310,0.78873,2534.7,2534.6,3.2078037]
[1748652075511,0.86028339,2534.7,2534.6,3.2078037]
[1748652076005,0.86028339,2534.7,2534.6,4.4480037]
[1748652076614,0.07155339,2534.7,2534.6,4.4480037]
[1748652076917,0.86028339,2534.7,2534.6,4.4480037]
[1748652077412,0.07155339,2534.7,2534.6,4.4480037]
[1748652077616,0.86028339,2534.7,2534.6,4.4480037]
[1748652078213,0.07155339,2534.7,2534.6,4.4480037]
[1748652078607,1.97143,2535.2,2534.6,4.4480037]
[1748652078608,5.55429578,2535.8,2534.6,9.4480037]
[1748652078808,6.83529578,2535.8,2535.1,3.2078]
[1748652079019,1.97104,2535.7,2535.1,3.2078]
[1748652079212,0.78865,2535.0,2534.8,8.3248]
[1748652079516,0.78866,2534.9,2534.8,4.4858]
[1748652079717,0.78866,2534.9,2534.8,3.2078]
[1748652081617,0.07155339,2534.7,2534.6,1.2780037]
[1748652082216,0.07155339,2534.7,2534.6,1.22250768]
[1748652084920,0.86027339,2534.7,2534.6,1.22250768]
[1748652085315,0.07155339,2534.7,2534.6,1.22250768]
[1748652086021,0.86027339,2534.7,2534.6,1.22250768]
[1748652086217,0.07155339,2534.7,2534.6,1.22250768]
[1748652086716,0.86027339,2534.7,2534.6,1.22250768]
[1748652088025,0.78875,2534.6,2534.5,3.2078]
[1748652088232,0.7960227,2534.6,2534.5,3.2078]
[1748652088524,3.4126227,2534.6,2534.5,3.2078]
[1748652088729,0.78879,2534.5,2534.4,0.0059237]
[1748652088933,2.09879,2534.5,2534.4,0.0059237]
[1748652090530,0.78888,2534.2,2534.1,3.2078]
[1748652092633,0.78894,2534.0,2533.9,0.0059237]
[1748652092825,0.78894,2534.0,2533.9,3.7e-06]
[1748652093026,5.78894,2534.0,2533.9,3.7e-06]
[1748652093221,7.74454,2534.0,2533.9,3.7e-06]
[1748652093927,8.05436987,2534.0,2533.9,3.7e-06]
[1748652094430,9.12009542,2534.0,2533.9,3.7e-06]
[1748652095430,8.81026555,2534.0,2533.9,3.7e-06]
[1748652096333,0.78919,2533.2,2533.1,3.2078]
[1748652100836,0.78925,2533.0,2532.9,0.0059237]
[1748652103937,0.78925,2533.0,2532.9,5.0059237]
[1748652104137,0.78925,2533.0,2532.9,6.3022237]
[1748652104438,0.78925,2533.0,2532.9,1.3022237]
[1748652104638,0.78925,2533.0,2532.9,0.0059237]
[1748652105238,3.2078,2532.4,2531.3,3.89448754]
[1748652105435,3.99749,2531.6,2531.5,4.55756848]
[1748652105737,9.10949,2531.6,2531.5,4.55756848]
[1748652106245,9.10949,2531.6,2531.3,3.89448754]
[1748652106246,5.0688,2531.6,2531.3,0.0059237]
[1748652106545,0.78975,2531.4,2531.3,0.0059237]
[1748652111040,2.16095,2531.4,2531.3,0.0059237]
[1748652112245,2.16095,2531.4,2530.2,1.2935]
[1748652112545,2.16095,2531.4,2529.1,5.114]
[1748652112546,3.2078,2530.3,2529.1,5.114]
[1748652112746,3.2078,2530.1,2529.2,3.28687638]
[1748652112941,3.2078,2529.8,2529.3,0.07907326]
[1748652113145,3.2078,2530.1,2529.3,0.07907326]
[1748652113344,0.0059237,2530.0,2529.5,3.2078]
[1748652113640,0.0059237,2530.0,2529.6,5.19306388]
[1748652114046,0.0059237,2530.0,2529.7,0.79026]
[1748652114260,0.0059237,2530.0,2529.7,5.0]
[1748652114545,0.0059237,2530.0,2529.8,5.114]
[1748652115045,0.0059237,2530.0,2529.8,10.114]
[1748652115553,3.2078,2530.1,2529.9,1.46792]
[1748652115744,3.2078,2530.1,2529.9,2.15191]
[1748652115944,3.2078,2530.1,2529.9,6.3617]
[1748652116144,3.2078,2530.1,2530.0,5.115]
[1748652116451,0.0059237,2530.3,2530.0,5.115]
[1748652116946,0.0059237,2530.3,2530.2,3.2078]
[1748652117350,0.0059237,2530.3,2530.2,8.2078]
[1748652117846,0.0059237,2530.3,2530.2,5.0]
[1748652118046,0.0059237,2530.3,2530.2,8.2078]
[1748652118444,0.0059237,2530.3,2530.2,5.0]
[1748652119048,0.0059237,2530.3,2530.2,5.105]
[1748652119954,0.0059237,2530.3,2530.2,10.105]
[1748652120254,0.0059237,2530.3,2530.2,10.89513]
[1748652122349,0.0059237,2530.3,2530.2,10.105]